fUSD/lending_fUSD_20250610
["ID","MTS","AMOUNT","RATE_DAILY","PERIOD"]
[365181361,1749521444249,-225.232342,0.00016438,2]
[365181363,1749521444258,-646.143134,0.00016438,2]
[365181365,1749521444269,-225.232342,0.00016438,2]
[365181367,1749521444278,-490.0,0.00016438,2]
[365181369,1749521444288,-646.143143,0.00016438,2]
[365181371,1749521444298,-225.232342,0.00016438,2]
[365181373,1749521444307,-468.34337354,0.00016438,2]
[365181375,1749521444317,-225.232342,0.00016438,2]
[365181377,1749521444328,-225.232342,0.00016438,2]
[365181379,1749521444338,-225.232342,0.00016438,2]
[365181381,1749521444348,-490.0,0.00016438,2]
[365181383,1749521444358,-225.232342,0.00016438,2]
[365181385,1749521444367,-225.232342,0.00016438,2]
[365181387,1749521444378,-225.232342,0.00016438,2]
[365181389,1749521444388,-225.232342,0.00016438,2]
[365181392,1749521444398,-363.14209839,0.00016438,2]
[365181394,1749521444408,-225.232342,0.00016438,2]
[365181396,1749521444417,-151.0,0.00016438,2]
[365181398,1749521444427,-480.0,0.00016438,2]
[365181400,1749521444436,-489.39053729,0.00016438,2]
[365181402,1749521444447,-225.232342,0.00016438,2]
[365181404,1749521444456,-157.276093,0.00016438,2]
[365181406,1749521444466,-225.232352,0.00016438,2]
[365181408,1749521444475,-481.61568286,0.00016438,2]
[365181410,1749521444485,-490.0,0.00016438,2]
[365181412,1749521444498,-468.11186571,0.00016438,2]
[365181414,1749521444507,-490.97810584,0.00016438,2]
[365181416,1749521444517,-373.04559491,0.00016438,2]
[365181418,1749521444526,-473.02663428,0.00016438,2]
[365181420,1749521444537,-490.0,0.00016438,2]
[365181422,1749521444546,-467.96036117,0.00016438,2]
[365181424,1749521444556,-323.22470653,0.00016438,2]
[365181427,1749521444578,-166.77529347,0.00016438,2]
[365181429,1749521444587,-265.60490239,0.00016438,2]
[365181431,1749521444599,-224.39509761,0.00016438,2]
[365181433,1749521444609,-473.28367564,0.00016438,2]
[365181435,1749521444619,-538.02585,0.00016438,2]
[365181437,1749521444629,-538.02585,0.00016438,2]
[365181439,1749521444640,-490.0,0.00016438,2]
[365181442,1749521444651,-471.55777996,0.00016438,2]
[365181444,1749521444660,-164.336938,0.00016438,2]
[365181446,1749521444670,-538.02585,0.00016438,2]
[365181448,1749521444680,-538.02585,0.00016438,2]
[365181450,1749521444689,-538.02585,0.00016438,2]
[365181452,1749521444699,-538.02585,0.00016438,2]
[365181454,1749521444708,-512.14317299,0.00016438,2]
[365181456,1749521444718,-479.38761246,0.00016438,2]
[365181458,1749521444727,-400.15855511,0.00016438,2]
[365181460,1749521444737,-538.02585,0.00016438,2]
[365181462,1749521444746,-538.02585,0.00016438,2]
[365181464,1749521444756,-538.02585,0.00016438,2]
[365181466,1749521444766,-538.02585,0.00016438,2]
[365181468,1749521444776,-538.02585,0.00016438,2]
[365181470,1749521444786,-538.02585,0.00016438,2]
[365181472,1749521444795,-538.02585,0.00016438,2]
[365181474,1749521444805,-490.0,0.00016438,2]
[365181476,1749521444815,-538.02585,0.00016438,2]
[365181478,1749521444825,-461.5984018,0.00016438,2]
[365181480,1749521444834,-538.02585,0.00016438,2]
[365181482,1749521444844,-492.70238267,0.00016438,2]
[365181484,1749521444854,-538.02585,0.00016438,2]
[365181486,1749521444865,-538.02585,0.00016438,2]
[365181488,1749521444875,-151.0,0.00016438,2]
[365181490,1749521444885,-538.025856,0.00016438,2]
[365181492,1749521444895,-151.0,0.00016438,2]
[365181494,1749521444911,-199.974642,0.00016438,2]
[365181496,1749521444927,-490.0,0.00016438,2]
[365181498,1749521444943,-490.0,0.00016438,2]
[365181500,1749521444959,-517.05725147,0.00016438,2]
[365181502,1749521444969,-490.0,0.00016438,2]
[365181504,1749521444978,-490.0,0.00016438,2]
[365181506,1749521444987,-490.0,0.00016438,2]
[365181508,1749521444997,-151.0,0.00016438,2]
[365181510,1749521445007,-151.0,0.00016438,2]
[365181513,1749521445018,-151.0,0.00016438,2]
[365181515,1749521445029,-490.0,0.00016438,2]
[365181517,1749521445039,-490.0,0.00016438,2]
[365181519,1749521445049,-151.0,0.00016438,2]
[365181521,1749521445059,-151.0,0.00016438,2]
[365181523,1749521445069,-151.0,0.00016438,2]
[365181525,1749521445079,-151.0,0.00016438,2]
[365181527,1749521445089,-151.0,0.00016438,2]
[365181529,1749521445099,-151.0,0.00016438,2]
[365181531,1749521445109,-490.42926267,0.00016438,2]
[365181533,1749521445119,-151.0,0.00016438,2]
[365181535,1749521445130,-151.0,0.00016438,2]
[365181537,1749521445140,-295.32087272,0.00016438,2]
[365181539,1749521445149,-151.0,0.00016438,2]
[365181541,1749521445159,-502.06795506,0.00016438,2]
[365181543,1749521445170,-208.669305,0.00016438,2]
[365181545,1749521445180,-486.21904882,0.00016438,2]
[365181546,1749521445190,-480.56359949,0.00016438,2]
[365181547,1749521445199,-490.0,0.00016438,2]
[365181548,1749521445209,-490.0,0.00016438,2]
[365181549,1749521445218,-490.0,0.00016438,2]
[365181550,1749521445228,-490.0,0.00016438,2]
[365181551,1749521445238,-484.06396925,0.00016438,2]
[365181571,1749521445472,-490.0,0.00016438,2]
[365181573,1749521445483,-490.0,0.00016438,2]
[365181575,1749521445495,-495.13166123,0.00016438,2]
[365181577,1749521445505,-490.0,0.00016438,2]
[365181579,1749521445515,-490.0,0.00016438,2]
[365181581,1749521445524,-151.0,0.00016438,2]
[365181583,1749521445534,-151.0,0.00016438,2]
[365181585,1749521445543,-490.0,0.00016438,2]
[365181587,1749521445553,-151.0,0.00016438,2]
[365181589,1749521445564,-171.850378,0.00016438,2]
[365181591,1749521445573,-478.37100806,0.00016438,2]
[365181593,1749521445583,-490.0,0.00016438,2]
[365181595,1749521445592,-466.2595766,0.00016438,2]
[365181597,1749521445602,-490.0,0.00016438,2]
[365181599,1749521445611,-2383.65,0.00016438,2]
[365181601,1749521445621,-444.44928207,0.00016438,2]
[365181603,1749521445630,-490.0,0.00016438,2]
[365181605,1749521445640,-490.0,0.00016438,2]
[365181607,1749521445650,-492.45,0.00016438,2]
[365181609,1749521445659,-240.352003,0.00016438,2]
[365181611,1749521445669,-240.352003,0.00016438,2]
[365181613,1749521445678,-490.0,0.00016438,2]
[365181615,1749521445687,-240.352003,0.00016438,2]
[365181617,1749521445697,-240.352003,0.00016438,2]
[365181619,1749521445706,-240.352003,0.00016438,2]
[365181621,1749521445716,-490.0,0.00016438,2]
[365181623,1749521445725,-240.352003,0.00016438,2]
[365181625,1749521445735,-240.352003,0.00016438,2]
[365181627,1749521445745,-240.352003,0.00016438,2]
[365181629,1749521445755,-490.0,0.00016438,2]
[365181631,1749521445764,-151.0,0.00016438,2]
[365181633,1749521445773,-151.0,0.00016438,2]
[365181635,1749521445783,-490.0,0.00016438,2]
[365181637,1749521445792,-151.0,0.00016438,2]
[365181639,1749521445802,-490.0,0.00016438,2]
[365181641,1749521445811,-490.0,0.00016438,2]
[365181643,1749521445820,-151.0,0.00016438,2]
[365181645,1749521445829,-490.0,0.00016438,2]
[365181647,1749521445840,-151.0,0.00016438,2]
[365181649,1749521445849,-240.352003,0.00016438,2]
[365181651,1749521445859,-151.0,0.00016438,2]
[365181653,1749521445869,-240.352003,0.00016438,2]
[365181655,1749521445879,-151.0,0.00016438,2]
[365181657,1749521445890,-240.352003,0.00016438,2]
[365181659,1749521445899,-151.0,0.00016438,2]
[365181661,1749521445908,-240.352003,0.00016438,2]
[365181663,1749521445918,-282.202135,0.00016438,2]
[365181665,1749521445927,-490.0,0.00016438,2]
[365181667,1749521445936,-490.0,0.00016438,2]
[365181669,1749521445946,-240.352003,0.00016438,2]
[365181671,1749521445955,-240.352003,0.00016438,2]
[365181673,1749521445964,-490.0,0.00016438,2]
[365181676,1749521445977,-240.352003,0.00016438,2]
[365181678,1749521445987,-736.91,0.00016438,2]
[365181681,1749521445996,-240.351999,0.00016438,2]
[365181683,1749521446007,-441.16866186,0.00016438,2]
[365181685,1749521446016,-490.0,0.00016438,2]
[365181687,1749521446026,-490.0,0.00016438,2]
[365181689,1749521446035,-490.0,0.00016438,2]
[365181691,1749521446045,-490.0,0.00016438,2]
[365181694,1749521446054,-490.0,0.00016438,2]
[365181696,1749521446064,-490.0,0.00016438,2]
[365181698,1749521446073,-491.24512595,0.00016438,2]
[365181700,1749521446083,-494.45683833,0.00016438,2]
[365181702,1749521446092,-437.86045891,0.00016438,2]
[365181704,1749521446102,-490.0,0.00016438,2]
[365181706,1749521446111,-490.0,0.00016438,2]
[365181708,1749521446120,-490.0,0.00016438,2]
[365181710,1749521446129,-490.0,0.00016438,2]
[365181712,1749521446138,-490.0,0.00016438,2]
[365181714,1749521446148,-490.0,0.00016438,2]
[365181716,1749521446157,-151.0,0.00016438,2]
[365181718,1749521446166,-490.0,0.00016438,2]
[365181719,1749521446176,-437.10685887,0.00016438,2]
[365181721,1749521446185,-154.800017,0.00016438,2]
[365181723,1749521446195,-490.0,0.00016438,2]
[365181725,1749521446205,-490.0,0.00016438,2]
[365181727,1749521446214,-482.27383723,0.00016438,2]
[365181730,1749521446224,-490.51193695,0.00016438,2]
[365181733,1749521446233,-569.79,0.00016438,2]
[365181736,1749521446243,-490.0,0.00016438,2]
[365181739,1749521446252,-490.0,0.00016438,2]
[365181743,1749521446263,-490.0,0.00016438,2]
[365181745,1749521446276,-505.48769908,0.00016438,2]
[365181749,1749521446286,-911.47,0.00016438,2]
[365181751,1749521446295,-490.0,0.00016438,2]
[365181754,1749521446305,-429.78563159,0.00016438,2]
[365181757,1749521446315,-490.0,0.00016438,2]
[365181759,1749521446324,-490.0,0.00016438,2]
[365181761,1749521446333,-490.0,0.00016438,2]
[365181763,1749521446343,-490.0,0.00016438,2]
[365181765,1749521446352,-472.97575531,0.00016438,2]
[365181768,1749521446362,-3369.78,0.00016438,2]
[365181769,1749521446371,-490.0,0.00016438,2]
[365181771,1749521446380,-490.0,0.00016438,2]
[365181773,1749521446390,-466.59072741,0.00016438,2]
[365181775,1749521446399,-500.03160448,0.00016438,2]
[365181777,1749521446409,-490.0,0.00016438,2]
[365181779,1749521446419,-490.0,0.00016438,2]
[365181781,1749521446428,-490.0,0.00016438,2]
[365181783,1749521446437,-500.0,0.00016438,2]
[365181786,1749521446447,-490.0,0.00016438,2]
[365181787,1749521446457,-500.0,0.00016438,2]
[365181790,1749521446467,-490.0,0.00016438,2]
[365181792,1749521446476,-189.51996,0.00016438,2]
[365181793,1749521446486,-490.0,0.00016438,2]
[365181795,1749521446498,-490.0,0.00016438,2]
[365181797,1749521446508,-490.0,0.00016438,2]
[365181799,1749521446517,-490.0,0.00016438,2]
[365181800,1749521446527,-490.0,0.00016438,2]
[365181802,1749521446538,-210.119645,0.00016438,2]
[365181804,1749521446547,-210.119645,0.00016438,2]
[365181806,1749521446556,-210.119645,0.00016438,2]
[365181808,1749521446566,-490.0,0.00016438,2]
[365181809,1749521446576,-210.119645,0.00016438,2]
[365181811,1749521446586,-534.9077452,0.00016438,2]
[365181813,1749521446596,-210.119645,0.00016438,2]
[365181815,1749521446605,-210.119645,0.00016438,2]
[365181817,1749521446616,-210.119645,0.00016438,2]
[365181819,1749521446627,-210.119645,0.00016438,2]
[365181820,1749521446639,-490.53601564,0.00016438,2]
[365181822,1749521446651,-210.119645,0.00016438,2]
[365181824,1749521446661,-210.119645,0.00016438,2]
[365181826,1749521446670,-210.119645,0.00016438,2]
[365181828,1749521446680,-210.119645,0.00016438,2]
[365181830,1749521446690,-210.119645,0.00016438,2]
[365181831,1749521446700,-210.119645,0.00016438,2]
[365181833,1749521446710,-490.0,0.00016438,2]
[365181835,1749521446721,-490.0,0.00016438,2]
[365181837,1749521446731,-490.0,0.00016438,2]
[365181839,1749521446741,-490.0,0.00016438,2]
[365181841,1749521446751,-210.119645,0.00016438,2]
[365181843,1749521446761,-210.119652,0.00016438,2]
[365181844,1749521446770,-425.19454748,0.00016438,2]
[365181846,1749521446780,-490.0,0.00016438,2]
[365181848,1749521446789,-823.41,0.00016438,2]
[365181850,1749521446798,-490.0,0.00016438,2]
[365181852,1749521446808,-461.96522915,0.00016438,2]
[365181853,1749521446816,-490.0,0.00016438,2]
[365181856,1749521446826,-490.0,0.00016438,2]
[365181858,1749521446835,-490.0,0.00016438,2]
[365181860,1749521446844,-490.0,0.00016438,2]
[365181862,1749521446853,-490.73525986,0.00016438,2]
[365181863,1749521446863,-475.61330073,0.00016438,2]
[365181865,1749521446872,-479.70560501,0.00016438,2]
[365181867,1749521446882,-490.0,0.00016438,2]
[365181869,1749521446891,-412.74009995,0.00016438,2]
[365181871,1749521446900,-490.0,0.00016438,2]
[365181873,1749521446910,-490.0,0.00016438,2]
[365181875,1749521446919,-490.0,0.00016438,2]
[365181877,1749521446928,-490.0,0.00016438,2]
[365181878,1749521446938,-490.0,0.00016438,2]
[365181880,1749521446947,-480.0,0.00016438,2]
[365181882,1749521446958,-490.0,0.00016438,2]
[365181884,1749521446968,-490.0,0.00016438,2]
[365181886,1749521446977,-473.58188215,0.00016438,2]
[365181888,1749521446986,-490.0,0.00016438,2]
[365181889,1749521446996,-490.0,0.00016438,2]
[365181891,1749521447006,-490.0,0.00016438,2]
[365181893,1749521447015,-490.0,0.00016438,2]
[365181895,1749521447025,-490.0,0.00016438,2]
[365181896,1749521447034,-485.84507853,0.00016438,2]
[365181898,1749521447044,-490.0,0.00016438,2]
[365181900,1749521447053,-490.0,0.00016438,2]
[365181902,1749521447062,-151.0,0.00016438,2]
[365181904,1749521447071,-1387.96,0.00016438,2]
[365181906,1749521447081,-151.0,0.00016438,2]
[365181908,1749521447090,-490.0,0.00016438,2]
[365181910,1749521447100,-151.0,0.00016438,2]
[365181911,1749521447109,-151.0,0.00016438,2]
[365181913,1749521447118,-490.0,0.00016438,2]
[365181915,1749521447128,-151.0,0.00016438,2]
[365181917,1749521447138,-914.11,0.00016438,2]
[365181919,1749521447147,-914.11,0.00016438,2]
[365181920,1749521447157,-197.716987,0.00016438,2]
[365181922,1749521447167,-914.11,0.00016438,2]
[365181924,1749521447177,-490.0,0.00016438,2]
[365181926,1749521447186,-189.60513188,0.00016438,2]
[365181928,1749521447196,-454.33075256,0.00016438,2]
[365181930,1749521447205,-490.0,0.00016438,2]
[365181932,1749521447215,-490.0,0.00016438,2]
[365181934,1749521447224,-473.98991381,0.00016438,2]
[365181935,1749521447233,-496.93909426,0.00016438,2]
[365181937,1749521447243,-41.93921694,0.00016438,2]
[365182027,1749521448446,-151.0,0.00016284,2]
[365182028,1749521448456,-276.562079,0.00016388,2]
[365182029,1749521448466,-151.0,0.00016389,2]
[365182030,1749521448476,-96.38133697,0.00016389,2]
[365182035,1749521448592,204.0,0.00015139,2]
[365182036,1749521448828,-60.72018503,0.00016389,2]
[365182037,1749521448837,-151.0,0.00016389,2]
[365182038,1749521448847,-151.0,0.00016389,2]
[365182039,1749521448856,-151.0,0.00016437,2]
[365182040,1749521448866,-34.39294497,0.00016438,2]
[365182041,1749521449310,-209.72641709,0.00016438,2]
[365182042,1749521449320,-490.0,0.00016438,2]
[365182043,1749521449330,-286.058579,0.00016438,2]
[365182044,1749521449340,-221.79013351,0.00016438,2]
[365182045,1749521449524,-64.26844549,0.00016438,2]
[365182046,1749521449535,-490.0,0.00016438,2]
[365182047,1749521449544,-57.65120841,0.00016438,2]
[365182048,1749521501133,5121.16,0.00015565,2]
[365182050,1749521606644,51433.25298304,0.000164,5]
[365182051,1749521629092,1333.0,0.00024605,120]
[365182052,1749521652235,1000.0,0.00017052,5]
[365182053,1749521659413,1000.0,0.00017052,5]
[365182054,1749521772113,464.0,0.00015498,2]
[365182055,1749521772379,464.0,0.00015948,2]
[365182056,1749521792053,-228.25558614,0.00016052,2]
[365182057,1749521793411,-175.49380153,0.00016052,2]
[365182058,1749521796049,-96.25061233,0.00016052,2]
[365182059,1749521796072,-267.14722431,0.00016052,2]
[365182060,1749521798372,-168.89658637,0.00016052,2]
[365182061,1749521800565,-63.95618932,0.00016052,2]
[365182062,1749521800589,-129.53829471,0.00016052,2]
[365182063,1749521801376,206.0,0.00015498,2]
[365182064,1749521802805,-151.0,0.00016052,2]
[365182065,1749521805566,-256.2396173,0.00016052,2]
[365182066,1749521809798,-0.09208799,0.00016052,2]
[365182067,1749521809822,-150.90791201,0.00016052,2]
[365182068,1749521810213,400.0,0.000167,6]
[365182069,1749521811550,-264.45423705,0.00016052,2]
[365182070,1749521812321,800.0,0.000168,6]
[365182071,1749521814307,-84.63785094,0.00016052,2]
[365182072,1749521814331,-74.65214906,0.00016052,2]
[365182073,1749521814449,1200.0,0.000169,6]
[365182074,1749521816827,-157.05554721,0.00016052,2]
[365182075,1749521819680,-206.15343911,0.00016052,2]
[365182076,1749521821904,-300.0,0.00016051,2]
[365182077,1749521821927,-62.13886462,0.00016052,2]
[365182078,1749521821950,-28.88825236,0.00016052,2]
[365182079,1749521824186,-187.4966131,0.00016052,2]
[365182080,1749521825752,-189.40872414,0.00016052,2]
[365182081,1749521828563,-94.2064104,0.00016052,2]
[365182082,1749521828588,-127.44687357,0.00016052,2]
[365182083,1749521832487,-270.84442396,0.00016052,2]
[365182084,1749521834708,-101.70870247,0.00016052,2]
[365182085,1749521834733,-119.10395613,0.00016052,2]
[365182086,1749521837545,-186.89929906,0.00016052,2]
[365182087,1749521839682,-187.22664632,0.00016052,2]
[365182088,1749521842443,-6.77009849,0.00016052,2]
[365182089,1749521842466,-246.22747351,0.00016052,2]
[365182090,1749521845070,-253.77252649,0.00016052,2]
[365182091,1749521845095,-139.95591615,0.00016052,2]
[365182092,1749521846936,-263.50072325,0.00016052,2]
[365182093,1749521849221,-96.5433606,0.00016052,2]
[365182094,1749521849247,-198.86012988,0.00016052,2]
[365182095,1749521850859,-157.85673608,0.00016052,2]
[365182096,1749521852961,-143.28313404,0.00016052,2]
[365182097,1749521852986,-61.5179973,0.00016052,2]
[365182098,1749521854671,-337.9622881,0.00016052,2]
[365182099,1749521856914,-100.5197146,0.00016052,2]
[365182100,1749521856937,-87.48998454,0.00016052,2]
[365182101,1749521859927,-189.11725677,0.00016052,2]
[365182102,1749521881818,-223.39275869,0.00016052,2]
[365182103,1749521881848,-115.28011423,0.00016052,2]
[365182104,1749521883642,-296.34420104,0.00016052,2]
[365182105,1749521885179,-88.37568473,0.00016052,2]
[365182106,1749521885209,-90.7538902,0.00016052,2]
[365182107,1749521886947,-409.2461098,0.00016052,2]
[365182108,1749521886970,-80.7538902,0.00016052,2]
[365182109,1749521889880,-163.95681925,0.00016052,2]
[365182110,1749521893243,-255.28929055,0.00016052,2]
[365182111,1749521893266,-86.48030733,0.00016052,2]
[365182112,1749521895107,-292.68541445,0.00016052,2]
[365182113,1749521898165,1000.0,0.00015483,2]
[365182114,1749521898827,-120.83427822,0.00016052,2]
[365182115,1749521898853,-80.13831447,0.00016052,2]
[365182116,1749521902100,-165.19093057,0.00016052,2]
[365182117,1749521904926,-181.34848935,0.00016052,2]
[365182118,1749521909384,-73.32226561,0.00016052,2]
[365182119,1749521909408,-210.2144707,0.00016052,2]
[365182120,1749521910969,-289.7855293,0.00016052,2]
[365182121,1749521910995,-176.75680382,0.00016052,2]
[365182122,1749521913072,-276.31325669,0.00016052,2]
[365182123,1749521917863,-46.92993949,0.00016052,2]
[365182124,1749521917895,-233.168185,0.00016052,2]
[365182125,1749521920785,-151.0,0.00016052,2]
[365182126,1749521922366,-115.831815,0.00016052,2]
[365182127,1749521922389,-114.71815323,0.00016052,2]
[365182128,1749521926433,-307.22958116,0.00016052,2]
[365182129,1749521929075,-78.05226561,0.00016052,2]
[365182130,1749521929104,-162.04501629,0.00016052,2]
[365182131,1749521931373,-229.70802035,0.00016052,2]
[365182133,1749521933036,-108.24696336,0.00016052,2]
[365182134,1749521933062,-121.46105699,0.00016052,2]
[365182135,1749521933473,263.37,0.00013699,2]
[365182136,1749521936416,-150.36894301,0.00016052,2]
[365182137,1749521936442,-89.68638335,0.00016052,2]
[365182138,1749521938212,-203.46058008,0.00016052,2]
[365182139,1749521940478,-186.34474612,0.00016052,2]
[365182140,1749521943327,-20.50829045,0.00016052,2]
[365182141,1749522118943,198.29,0.00015477,2]
[365182142,1749522131752,455.0,0.00015397,2]
[365182143,1749522131999,455.0,0.00015848,2]
[365182144,1749522144335,150.0,0.00015461,7]
[365182145,1749522157067,748.18,0.00013543,2]
[365182146,1749522157265,748.18,0.00015807,2]
[365182148,1749522182007,166.69,0.00015938,2]
[365182149,1749522239544,1335.0,0.0002465,120]
[365182150,1749522244691,182.0,0.00016,2]
[365182151,1749522248373,700.0,0.00013872,2]
[365182152,1749522250426,700.0,0.00015242,2]
[365182153,1749522257883,11887.8,0.00016,2]
[365182154,1749522262329,198.0,0.00016,2]
[365182155,1749522299675,405.16241264,0.0002465,120]
[365182156,1749522320172,1632.22,0.00015467,2]
[365182159,1749522397402,2800.23,0.00015467,2]
[365182171,1749522411407,200.7,0.00016,2]
[365182172,1749522423931,160.36,0.00015467,2]
[365182173,1749522451697,900.0,0.000159,5]
[365182174,1749522453795,1800.0,0.000168,6]
[365182175,1749522455904,2700.0,0.000169,6]
[365182176,1749522491700,446.0,0.00015298,2]
[365182177,1749522492406,446.0,0.0001575,2]
[365182194,1749522539503,846.0,0.0002465,120]
[365182199,1749522576870,547.84,0.00015471,2]
[365182208,1749522631514,-2000.0,0.000162,2]
[365182209,1749522631524,-1015.0,0.000162,2]
[365182210,1749522631533,-300.0,0.00016201,2]
[365182211,1749522631542,-250.0,0.00016201,2]
[365182212,1749522631552,-446.0,0.00016201,3]
[365182213,1749522631561,-300.0,0.00016246,2]
[365182214,1749522631571,-250.0,0.00016246,2]
[365182215,1749522631580,-1200.0,0.00016261,2]
[365182216,1749522631589,-1400.57626092,0.00016262,2]
[365182217,1749522631600,-840.42373908,0.00016262,2]
[365182218,1749522631609,-200.0,0.00016304,2]
[365182219,1749522631619,-500.0,0.00016307,2]
[365182220,1749522631628,-200.0,0.00016307,2]
[365182221,1749522631637,-200.0,0.00016317,2]
[365182222,1749522631646,-611.74124207,0.00016328,2]
[365182223,1749522631689,-654.174015,0.00016328,2]
[365182224,1749522631705,-691.94074293,0.00016328,2]
[365182225,1749522631714,-207.4,0.00016328,2]
[365182226,1749522631726,-300.0,0.00016337,2]
[365182227,1749522631735,-504.2305437,0.00016338,2]
[365182228,1749522631745,-3432.23714998,0.00016338,2]
[365182229,1749522631754,-272.0629,0.00016338,2]
[365182230,1749522631763,-17561.1121,0.00016338,2]
[365182231,1749522631772,-3440.2331,0.00016338,2]
[365182232,1749522631782,-728.9522,0.00016338,2]
[365182233,1749522631791,-1000.0,0.00016338,2]
[365182234,1749522631801,-2241.0,0.00016341,2]
[365182235,1749522631810,-200.0,0.00016376,2]
[365182236,1749522631821,-2030.296672,0.00016383,2]
[365182237,1749522631831,-1008.0,0.000164,2]
[365182238,1749522631844,-1495.207,0.00016428,2]
[365182239,1749522631854,-319.85,0.00016428,2]
[365182240,1749522631863,-319.85,0.00016428,2]
[365182241,1749522631873,-151.0,0.00016428,2]
[365182243,1749522631884,-151.0,0.00016428,2]
[365182245,1749522631893,-1000.0,0.00016428,2]
[365182246,1749522631903,-500.0,0.00016428,2]
[365182247,1749522631915,-500.0,0.00016428,2]
[365182248,1749522631924,-268.75,0.00016428,2]
[365182249,1749522631934,-2200.1747221,0.00016429,2]
[365182250,1749522631943,-6937.5797569,0.00016429,2]
[365182251,1749522631956,-17739.3472431,0.00016429,2]
[365182252,1749522631965,-7451.7542644,0.00016429,2]
[365182253,1749522631974,-151.0,0.00016438,2]
[365182254,1749522631984,-151.0,0.00016438,2]
[365182255,1749522631993,-151.0,0.00016438,2]
[365182256,1749522632003,-151.0,0.00016438,2]
[365182257,1749522632012,-160.122674,0.00016438,2]
[365182258,1749522632022,-163.089502,0.00016438,2]
[365182259,1749522632031,-218.147334,0.00016438,2]
[365182260,1749522632041,-460.38021786,0.00016438,2]
[365182261,1749522632050,-151.0,0.00016438,2]
[365182262,1749522632060,-151.0,0.00016438,2]
[365182263,1749522632069,-151.0,0.00016438,2]
[365182264,1749522632078,-151.0,0.00016438,2]
[365182265,1749522632087,-152.811499,0.00016438,2]
[365182266,1749522632096,-157.370784,0.00016438,2]
[365182267,1749522632105,-151.0,0.00016438,2]
[365182268,1749522632114,-151.0,0.00016438,2]
[365182269,1749522632123,-151.0,0.00016438,2]
[365182270,1749522632132,-152.206899,0.00016438,2]
[365182271,1749522632141,-284.908005,0.00016438,2]
[365182272,1749522632150,-163.619815,0.00016438,2]
[365182273,1749522632160,-151.0,0.00016438,2]
[365182274,1749522632169,-151.0,0.00016438,2]
[365182276,1749522632178,-151.0,0.00016438,2]
[365182277,1749522632187,-171.323796,0.00016438,2]
[365182278,1749522632197,-2773.812551,0.00016438,2]
[365182279,1749522632206,-490.0,0.00016438,2]
[365182280,1749522632215,-490.0,0.00016438,2]
[365182281,1749522632225,-2739.341264,0.00016438,2]
[365182282,1749522632234,-490.0,0.00016438,2]
[365182283,1749522632243,-499.8270817,0.00016438,2]
[365182284,1749522632252,-415.51895886,0.00016438,2]
[365182285,1749522632262,-152.691616,0.00016438,2]
[365182286,1749522632271,-490.0,0.00016438,2]
[365182287,1749522632280,-492.02810188,0.00016438,2]
[365182288,1749522632289,-151.0,0.00016438,2]
[365182289,1749522632298,-151.0,0.00016438,2]
[365182290,1749522632307,-314.53076759,0.00016438,2]
[365182291,1749522632338,-175.46923241,0.00016438,2]
[365182292,1749522632347,-151.0,0.00016438,2]
[365182293,1749522632356,-151.0,0.00016438,2]
[365182294,1749522632366,-490.0,0.00016438,2]
[365182295,1749522632375,-191.90809652,0.00016438,2]
[365182296,1749522632387,-239.55463285,0.00016438,2]